Cogmind - Beta 11.1 @@@ ROGUE MODE // 2022.10.23 @ 17:59:24 Player: HeartGrenade Result: Destroyed by Alpha 7 with Multirail Performance ------------- Evolutions (9) 4500 Regions Visited (29) 5800 Robots Destroyed (573) 2865 Value Destroyed (27508) 27508 Prototype IDs (52) 1040 Alien Tech Used (2) 400 Bonus (15312) 15312 TOTAL SCORE: 57425 Bonus ------- Triggered High Security 1000 High Alert Combat Kills 9888 Follower Combat Kills 958 Network Hubs Disabled 600 Met Imprinter 300 Met Zhirov 300 Met Warlord at Base 500 MAIN.C Attacked Warlord 500 Warlord Defense Kills 1538 Built Enhanced Grunts 300 A7 Reached Mainframe 300 Met Warlord at Research 2000 Scanned by Researcher 500 Friendly Fire -3372 Cogmind --------- Core Integrity 0/1600 Matter 204/300 Energy 60/100 System Corruption 1% Temperature Cool (0) Movement Core (1500) Ox29 Location -1/Command Parts ------- > --- POWER (3) -------- (None) > --- PROPULSION (6) --- (None) > --- UTILITY (12) ----- Huge Storage Unit Advanced Terrain Scan Processor Advanced Target Analyzer Improved Armor Integrity Analyzer > --- WEAPON (4) ------- RU-N14's Throwing Claymores v3 > --- INVENTORY (25) --- Quantum Reactor Light Quantum Reactor Improved Energy Well (400) Improved Matter Compressor (111) Warp Gun KE Penetrator Helical Railgun Compact Linear Accelerator Advanced Remote Datajack Peak State ------------ > --- POWER ------------ Particle Reactor Quantum Reactor Quantum Reactor > --- PROPULSION ------- Centrium Heavy Treads Biometal Heavy Treads Advanced Heavy Siege Treads > --- UTILITY ---------- Advanced Cooling System Experimental Coolant Injector Huge Storage Unit Spectral Analyzer Advanced Terrain Scan Processor Advanced Target Analyzer Experimental Core Analyzer Centrium Medium Armor Plating Advanced Focal Shield Experimental Force Field Advanced Corruption Screen Improved System Restoration Module > --- WEAPON ----------- Heavy Dispersion Rifle Enhanced Quantum Rifle Helical Railgun Multirail > --- INVENTORY -------- Vortex Chain Reactor Advanced Heavy Siege Treads Centrium Wheel Advanced Heat Sink Experimental Coolant Injector Advanced Energy Well Improved Matter Compressor Seismic Detector Heavy Armor Plating Experimental Thermal Shield Improved Hacking Suite Hacking Drone Bay Warp Gun Enhanced Nova Cannon Enhanced Nova Cannon Neutron Missile Launcher Neutron Missile Launcher Advanced Remote Datajack RU-N14's Throwing Claymores v3 RU-N14's Throwing Claymores v3 RU-N14's Throwing Claymores v3 Phasing Sabre [Rating: 223] Favorites ----------- Power Particle Reactor Engine Heavy Deuterium Engine Power Core Enhanced Nuclear Core Reactor Particle Reactor Propulsion Medium Treads Treads Medium Treads Leg Enhanced Biometal Leg Wheel Armored Huge Wheel Utility Huge Storage Unit Device Advanced Heat Sink Storage Huge Storage Unit Processor Experimental Signal Interpreter Hackware Authchip [Device] Protection Centrium Medium Armor Plating Weapon Cooled Particle Cannon Energy Gun Advanced Beam Rifle Energy Cannon Cooled Particle Cannon Ballistic Gun Advanced KE Penetrator Ballistic Cannon Heavy Gauss Cannon Launcher Neutron Missile Launcher Special Weapon RU-N14's Throwing Claymores v3 Impact Weapon Great Maul Slashing Weapon Phasing Sabre Build | -11 -10 -9 -9 -8 -8 -7 -7 -7 -7 -6 -6 -6 -6 -6 -6 -5 -5 -5 -4 -4 -4 -4 -4 -3 -3 -3 -2 -1 -1 ------- Run | Scr Mat Mat Min Mat Sto Fac Low Low Zio Pro Fac Ext Cet Arc Hub Fac Upp War Pro Fac Upp Upp Zhi Pro Res Tes Res Acc Com Slots Evolved 18 | . . 2 . 2 . 2 . . . . 2 . . . . 2 . . . 2 . . . . 2 . 2 2 . Power 2 | . . . . . . . . . . . . . . . . 1 . . . . . . . . 1 . . . . Propulsion 4 | . . 1 . . . 1 . . . . . . . . . 1 . . . 1 . . . . . . . . . Utility 10 | . . 1 . 1 . 1 . . . . 2 . . . . . . . . 1 . . . . 1 . 1 2 . Weapon 2 | . . . . 1 . . . . . . . . . . . . . . . . . . . . . . 1 . . Parts Attached 534 | 4 4 30 3 29 22 24 5 4 2 10 19 12 6 1 11 25 4 15 8 63 3 12 6 2 26 42 21 67 54 Power 36 | . 1 2 . 1 2 2 . . . . 1 . 1 . 1 1 . 2 . 4 1 . 1 1 4 2 . 6 3 Engine 8 | . 1 2 . 1 1 . . . . . . . 1 . . 1 . 1 . . . . . . . . . . . Core 8 | . . . . . 1 2 . . . . 1 . . . . . . . . 4 . . . . . . . . . Reactor 20 | . . . . . . . . . . . . . . . 1 . . 1 . . 1 . 1 1 4 2 . 6 3 Propulsion 85 | 2 . 8 . 6 6 4 1 . . 2 4 2 1 . 3 9 1 4 . 11 . . . . 2 3 2 7 7 Treads 78 | 2 . 8 . 6 6 3 1 . . 2 4 2 1 . 3 5 1 3 . 10 . . . . 2 3 2 7 7 Leg 2 | . . . . . . . . . . . . . . . . . . 1 . 1 . . . . . . . . . Wheel 5 | . . . . . . 1 . . . . . . . . . 4 . . . . . . . . . . . . . Hover . | . . . . . . . . . . . . . . . . . . . . . . . . . . . . . . Flight . | . . . . . . . . . . . . . . . . . . . . . . . . . . . . . . Utility 220 | . 2 6 1 6 5 10 2 2 2 6 11 8 3 . 6 11 2 4 3 30 2 5 4 . 12 25 10 27 15 Device 166 | . . 2 1 3 2 7 2 2 1 5 10 4 2 . 5 10 2 1 3 26 2 5 3 . 11 19 8 21 9 Storage 9 | . 1 . . . . . . . . . . 1 . . . . . . . . . . 1 . . 3 1 1 1 Processor 12 | . . . . . . 2 . . 1 . . . . . . . . 1 . 1 . . . . . 1 1 2 3 Hackware 3 | . . . . . . . . . . . . 1 . . . . . . . 1 . . . . . . . . 1 Protection 30 | . 1 4 . 3 3 1 . . . 1 1 2 1 . 1 1 . 2 . 2 . . . . 1 2 . 3 1 Artifact . | . . . . . . . . . . . . . . . . . . . . . . . . . . . . . . Weapon 193 | 2 1 14 2 16 9 8 2 2 . 2 3 2 1 1 1 4 1 5 5 18 . 7 1 1 8 12 9 27 29 Energy Gun 44 | . . 9 1 6 5 . . . . . 1 . 1 . . . . 2 . 5 . . . . 3 3 . 5 3 Energy Cannon 33 | . . . . . . 6 1 1 . 2 . 1 . . 1 2 1 1 . 1 . 1 . 1 1 2 3 5 3 Ballistic Gun 52 | 2 1 2 . 3 2 . . . . . 1 . . 1 . . . 1 3 7 . 2 . . 1 4 5 7 10 Ballistic Cannon 4 | . . . . . . . . . . . . 1 . . . . . . . . . 1 . . . . 1 . 1 Launcher 27 | . . . 1 2 1 2 1 1 . . 1 . . . . 2 . . 1 . . 2 . . . 1 . 4 8 Special Weapon 12 | . . . . . . . . . . . . . . . . . . . 1 2 . 1 . . 1 . . 3 4 Impact Weapon 9 | . . 3 . 5 1 . . . . . . . . . . . . . . . . . . . . . . . . Slashing Weapon 12 | . . . . . . . . . . . . . . . . . . 1 . 3 . . 1 . 2 2 . 3 . Piercing Weapon . | . . . . . . . . . . . . . . . . . . . . . . . . . . . . . . Special Melee Weapon . | . . . . . . . . . . . . . . . . . . . . . . . . . . . . . . Unidentified Prototypes 40 | . . 3 . 1 2 2 . . 3 . 1 . 1 1 1 1 . 3 1 . . 1 3 . 1 8 . 3 4 Corrupted Parts 1 | . . . . . . . . . . . . . . . 1 . . . . . . . . . . . . . . System Corruption 7 | . . . . . . . . . . . . . . . 7 . . . . . . . . . . . . . . Parts Lost 116 | . . 3 1 10 8 2 . . 2 4 3 4 2 . 3 2 2 1 2 9 . . . . 1 1 . 14 42 Power 14 | . . . . 1 2 1 . . . . . . 1 . . . . 1 . 3 . . . . . . . 1 4 Propulsion 26 | . . . . 3 2 . . . . 2 . . 1 . 3 2 2 . 1 1 . . . . . . . 1 8 Utility 44 | . . 2 1 2 1 1 . . 2 1 1 2 . . . . . . 1 3 . . . . 1 1 . 9 16 Weapon 32 | . . 1 . 4 3 . . . . 1 2 2 . . . . . . . 2 . . . . . . . 3 14 Highest Loss Streak 15 | . . 1 1 9 2 1 . . 2 3 3 4 2 . 1 2 2 1 2 2 . . . . 1 1 . 4 15 To Critical Strikes 4 | . . . . . . . . . . . . . . . . . . . . . . . . . . . . 3 1 Average Slot Usage (%) 91 | . 77 97 100 93 96 94 92 91 91 91 97 98 95 100 99 92 92 92 95 89 89 89 89 89 88 85 85 87 72 Engine 2 | . 5 11 11 8 5 . . . . . . . 5 6 6 . 5 7 5 . . . . . . . . . . Core 2 | . . . . . 3 6 7 7 7 7 5 6 . . . . . . . 9 5 5 2 . . . . . . Reactor 3 | . . . . . . . . . . . . . . . . 4 . . 5 . 4 5 7 10 12 14 13 11 7 Treads 20 | . 28 31 33 24 24 19 15 15 15 16 24 26 22 26 25 17 27 23 26 21 21 21 21 21 18 15 12 12 11 Wheel 1 | . . . . . . 4 7 7 7 5 . . . . . 8 . . . . . . . . . . . . . Device 15 | . . 7 11 9 13 15 15 14 13 7 19 16 13 13 13 12 16 15 11 14 15 15 14 15 18 18 21 23 11 Storage 6 | . 2 11 11 9 9 7 7 7 7 7 6 6 6 6 6 5 5 5 5 5 5 5 5 5 4 4 4 4 4 Processor 10 | . . . . . . 6 7 7 8 15 13 13 13 13 13 11 11 12 14 15 15 15 15 15 14 14 13 15 21 Protection 6 | . 11 13 11 14 13 7 7 7 7 7 6 6 6 6 6 5 5 4 5 5 5 5 5 5 4 3 4 3 1 Energy Gun 6 | . . 14 21 20 17 1 . . . . 3 4 6 5 . . . 3 10 7 10 4 . . 6 7 4 7 5 Energy Cannon 6 | . . . . . . 20 22 23 23 22 10 8 13 13 13 11 17 7 . . . 1 . 3 1 2 1 1 3 Ballistic Gun 4 | . 28 6 . 3 8 . . . . . 4 4 . . 6 4 . 2 4 6 5 5 10 10 4 1 10 5 5 Naked Turns . | . . . . . . . . . . . . . . . . . . . . . . . . . . . . . . Heaviest Build 197 | 3 49 59 60 68 67 82 84 84 84 91 93 124 124 123 135 147 134 138 143 142 124 137 146 144 172 190 197 196 169 Greatest Support 240 | 3 40 60 60 60 60 83 28 56 56 79 112 114 116 116 116 144 144 143 142 207 207 207 207 207 212 230 235 235 240 Greatest Overweight (x) 13 | . 1 1 . 1 3 2 2 2 1 3 1 1 1 1 1 13 1 1 1 1 . . . . 1 . . 1 . Average Overweight (x) . | . . . . . . 1 2 1 1 1 . . 1 1 . 4 . . . . . . . . . . . . . Largest Inventory Capacity 25 | 5 20 20 20 20 20 20 20 20 20 20 20 25 25 25 25 25 25 25 25 25 25 25 25 25 25 25 25 25 25 Average Capacity 22 | 5 8 20 20 20 20 20 20 20 20 20 20 20 25 25 25 25 25 25 25 25 25 25 25 25 25 25 25 25 25 Most Carried 25 | 2 6 20 20 20 20 20 20 20 20 20 20 24 25 25 25 25 25 25 25 25 25 25 25 25 25 25 25 25 25 Average Carried 21 | 1 4 16 19 18 19 19 20 19 19 19 19 19 24 24 24 24 24 24 24 24 24 24 24 25 24 24 24 24 20 Final Capacity 25 | 5 20 20 20 20 20 20 20 20 20 20 20 25 25 25 25 25 25 25 25 25 25 25 25 25 25 25 25 25 25 Final Carried 25 | 2 6 20 19 19 20 20 20 20 20 18 20 24 24 25 24 24 24 24 25 25 25 25 25 25 25 25 25 25 9 Class Distribution -------------------- 17% | Gunner 17% | Mutant 11% | Scavenger-Skirmisher 10% | Scavenger-Mutant 6% | Generator-Tank 6% | Generator-Skirmisher 5% | Scavenger-Tank 5% | Generator-Mutant 4% | Scavenger-Gunner 4% | Commander-Gunner 3% | Generator-Gunner Dominant Class ---------------- Mutant | -10/Materials Mutant | -9/Materials Mutant | -9/Mines Tank | -8/Materials Scavenger-Tank | -8/Storage Gunner | -7/Factory Gunner | -7/Lower Caves Gunner | -7/Lower Caves Gunner | -7/Zion Gunner | -6/Proximity Caves Gunner | -6/Factory Gunner | -6/Extension Mutant | -6/Cetus Commander-Gunner | -6/Archives Commander-Gunner | -6/Hub_04(d) Scavenger-Skirmisher | -5/Factory Scavenger-Skirmisher | -5/Upper Caves Mutant | -5/Warlord Scavenger-Gunner | -4/Proximity Caves Scavenger-Skirmisher | -4/Factory Scavenger-Skirmisher | -4/Upper Caves Scavenger-Mutant | -4/Upper Caves Scavenger-Skirmisher | -4/Zhirov Scavenger-Mutant | -3/Proximity Caves Generator-Skirmisher | -3/Research Generator-Mutant | -3/Testing Generator-Skirmisher | -2/Research Generator-Tank | -1/Access Generator-Gunner | -1/Command Resources | -11 -10 -9 -9 -8 -8 -7 -7 -7 -7 -6 -6 -6 -6 -6 -6 -5 -5 -5 -4 -4 -4 -4 -4 -3 -3 -3 -2 -1 -1 ----------- Run | Scr Mat Mat Min Mat Sto Fac Low Low Zio Pro Fac Ext Cet Arc Hub Fac Upp War Pro Fac Upp Upp Zhi Pro Res Tes Res Acc Com Matter Collected 12076 | 189 137 648 39 486 392 311 76 81 40 85 214 255 60 . 122 440 224 282 116 1117 139 345 88 20 566 964 850 2388 1402 Remotely . | . . . . . . . . . . . . . . . . . . . . . . . . . . . . . . Salvage Created 28129 | . 163 1684 164 1480 1594 840 185 247 . 450 306 1170 118 . 889 1398 207 761 184 1895 151 356 120 . 985 1491 583 5562 5146 Parts 1294 | . 19 107 24 58 79 41 11 9 . 20 16 40 7 . 25 63 7 18 7 109 8 10 4 . 68 76 30 273 165 Haulers Intercepted 18 | . . 6 . 4 3 1 . . . . . . . . . 1 . . . 1 . 1 . . . . . 1 . Recyclers Shooed 16 | . . 2 . 2 . 1 . . . . . 1 . . . 2 . . . 5 . . . . 1 . . . 2 Parts Field Recycled . | . . . . . . . . . . . . . . . . . . . . . . . . . . . . . . Retrieved Matter . | . . . . . . . . . . . . . . . . . . . . . . . . . . . . . . Parts Self-Destructed 74 | . . . . . . . 10 10 . 18 . . . . . . 6 . 10 . 7 10 3 . . . . . . Prevented . | . . . . . . . . . . . . . . . . . . . . . . . . . . . . . . Kills | -11 -10 -9 -9 -8 -8 -7 -7 -7 -7 -6 -6 -6 -6 -6 -6 -5 -5 -5 -4 -4 -4 -4 -4 -3 -3 -3 -2 -1 -1 ------- Run | Scr Mat Mat Min Mat Sto Fac Low Low Zio Pro Fac Ext Cet Arc Hub Fac Upp War Pro Fac Upp Upp Zhi Pro Res Tes Res Acc Com Combat Hostiles Destroyed 456 | . 6 31 11 25 25 18 5 5 . 7 7 16 2 . . 28 4 10 8 34 2 11 . . 18 21 6 73 83 Guns 239 | . 6 30 8 22 21 2 . . . . 3 5 . . . 3 . 8 3 24 2 2 . . 12 19 4 50 15 Cannons 66 | . . . . . . 9 2 2 . 6 2 7 2 . . 13 2 . 2 1 . 1 . . 1 2 2 4 8 AOE 135 | . . . 3 2 3 6 3 3 . . 2 . . . . 11 2 . 3 9 . 8 . . 5 . . 19 56 Classes Destroyed 26 | . 2 6 1 2 1 3 . . . 2 . . . . . . . 2 . 2 . . . . 1 . . 1 3 Worker 34 | . . 1 . 1 2 . . . . . . . . . 5 3 . . . 4 . . . . 1 . . 6 11 Builder 13 | . . . 1 1 1 . . . . . . 1 . . 2 . . . . 1 . . . . 2 . . 4 . Tunneler 7 | . . 1 . . . 1 . . . . . . . . 1 . . . . 2 . . . . . . . 2 . Hauler 18 | . . 6 . 4 3 1 . . . . . . . . . 1 . . . 1 . 1 . . . . . 1 . Recycler 19 | . . 2 . 3 1 . . . . . . . . . 2 1 . . . 2 . . . . . . . 2 6 Mechanic 5 | . . . . . . . . . . . . . . . . . . . . . . . . . 1 . . . 4 Operator 6 | . . . . 2 1 . . . . . 1 1 . . . . . . . . . . . . . 1 . . . Drone 2 | . . . . . 1 . . . . . . . . . . . . . . . . . . . . . . . 1 Watcher 18 | . . 1 . 2 2 1 . . . . . 1 . . 1 1 . . . 1 . . . . 2 . 1 4 1 Swarmer 87 | . 3 9 11 7 2 4 . . . . 3 . . . . 9 . . 5 9 . 5 . . 8 2 . 10 . Cutter 3 | . . . . . . . . . . . . . . . . . . . . 3 . . . . . . . . . Saboteur 3 | . . . . . . . . . . . . . . . . . . . . . . . . . . . . . 3 Grunt 157 | . 3 14 . 16 12 6 4 5 . 3 1 5 . . . 12 3 3 2 8 . 4 . . 4 6 4 10 32 Brawler 16 | . . . . . . 1 . . . . . . . . . 1 . 1 . 1 . . . . . . . 4 8 Duelist 13 | . . . . . . . . . . 1 . 3 . . . . . . . 1 . . . . . . . 2 6 Protector 8 | . . . . . . . . . . . . . . . . . . . . 1 . . . . . . . 1 6 Sentry 44 | . . 8 . 1 9 2 . . . . 2 5 . . . . . . . 1 . . . . . 2 1 11 2 Demolisher 2 | . . . . . . . . . . . . . . . . . . 2 . . . . . . . . . . . Specialist 7 | . . . . . . 2 . . . . . . . . . 2 . 1 . . . . . . . . . 2 . Hunter 46 | . . . . 1 2 1 . . . 2 . 1 . . . 2 . . . 2 2 2 . . 2 5 . 13 11 Programmer 54 | . . . . . . 2 1 . . . 1 . 1 . . 2 1 1 . 8 . . . . 4 6 . 18 9 Q-Series 2 | . . . . . . . . . . . . . . . . . . . . . . . . . . . . 2 . Behemoth 5 | . . . . . . . . . . 1 . 2 . . . . . . 1 . . . . . . . 1 . . Cetus Guard 1 | . . . . . . . . . . . . . 1 . . . . . . . . . . . . . . . . Enhanced Grunt 5 | . . . . . . . . . . . . . . . 5 . . . . . . . . . . . . . . Investigator 1 | . . . . . . . . . . . . . . . . . . . . . . . . . . . . . 1 Striker 3 | . . . . . . . . . . . . . . . . . . . . . . . . . . . . . 3 Executioner 5 | . . . . . . . . . . . . . . . . . . 2 . . . . . . . . . . 3 Wasp 1 | . . . . . . . . . . . . . . . . . . . . . . . . . . . 1 . . Thug 1 | . . . . . . . . . . . . . . . . . . 1 . . . . . . . . . . . Butcher 1 | . . . . . . . . . . . . 1 . . . . . . . . . . . . . . . . . Best Kill Streak 25 | . 3 5 4 5 6 8 5 3 . 4 3 4 1 . 5 11 2 7 6 8 2 5 . . 7 9 2 12 25 Combat Bots Only 25 | . 3 5 4 4 5 8 4 3 . 4 3 3 1 . . 10 2 7 6 6 2 5 . . 7 9 2 7 25 Max Kills in Single Turn 10 | . 1 1 3 2 3 5 2 2 . 1 1 2 1 . 5 4 1 1 2 4 2 5 . . 4 2 1 4 10 Gunslinging 1 | . . . 1 1 . . . . . . . . . . . . . . . . 1 . . . . 1 . . . Exploded 10 | . . . 3 2 3 5 2 2 . . 1 . . . . 4 1 . 1 3 . 5 . . 3 . . 3 10 Melee . | . . . . . . . . . . . . . . . . . . . . . . . . . . . . . . Uniques/NPCs Destroyed . | . . . . . . . . . . . . . . . . . . . . . . . . . . . . . . Combat | -11 -10 -9 -9 -8 -8 -7 -7 -7 -7 -6 -6 -6 -6 -6 -6 -5 -5 -5 -4 -4 -4 -4 -4 -3 -3 -3 -2 -1 -1 -------- Run | Scr Mat Mat Min Mat Sto Fac Low Low Zio Pro Fac Ext Cet Arc Hub Fac Upp War Pro Fac Upp Upp Zhi Pro Res Tes Res Acc Com Damage Taken 35584 | . 307 1142 178 1657 1404 939 233 36 41 811 378 1219 536 76 421 1366 515 1192 533 2631 205 751 . . 1635 1695 591 5365 9727 Core 3207 | . 76 132 17 243 195 98 20 19 . 81 5 80 25 . 38 78 . 75 61 200 11 26 . . 73 76 51 247 1280 Absorbed by Shields 6735 | . . . . . . . . . . . . 93 167 . . . . . . . . . . . 339 1031 606 4499 . Reduced by Siege Mode 447 | . . . . . . . . . . . . . . . . . . . . 5 11 . . . 49 142 50 190 . Redirected to Shielding 153 | . 23 32 . 14 84 . . . . . . . . . . . . . . . . . . . . . . . . Regen/Repaired (Parts) 1677 | . . 173 . . . . . . . . 68 . . . . . . . . 461 . . . . 906 69 . . . Core Remaining (%) 74 | 100 69 . 62 . 20 . . . . 68 . . . . 82 . . . 78 . . . . 79 . 88 96 . . Volleys Fired 1076 | . 17 95 16 81 66 33 6 6 . 20 24 43 10 1 11 62 10 40 14 88 4 21 . 3 61 51 33 151 109 Largest 4 | . 2 2 2 3 3 3 3 3 . 3 3 3 3 2 3 3 3 3 3 3 3 3 . 1 3 3 4 4 4 Hottest 319 | . 40 122 117 172 191 145 90 90 . 90 138 173 214 120 215 270 278 221 221 225 225 221 . 98 295 301 282 319 317 Shots Fired 2787 | . 34 190 31 208 183 82 14 14 . 60 53 115 24 2 20 141 27 98 26 212 10 41 . 3 138 123 121 485 332 Gun 2095 | . 34 190 30 203 182 12 . . . . 19 49 10 . 7 36 . 90 21 201 10 21 . . 115 97 111 441 216 Cannon 608 | . . . . . . 67 12 12 . 60 33 66 14 2 13 98 27 8 . 6 . 16 . 3 21 26 10 32 82 Launcher 54 | . . . 1 5 1 3 2 2 . . 1 . . . . 7 . . 2 . . 4 . . . . . 6 20 Special 30 | . . . . . . . . . . . . . . . . . . . 3 5 . . . . 2 . . 6 14 Kinetic 936 | . 34 68 . 49 50 4 . . . . 12 31 . . 7 36 . 32 5 96 3 27 . . 62 31 84 202 103 Thermal 1767 | . . 122 30 154 132 75 12 12 . 60 40 84 24 2 13 98 27 66 16 111 7 10 . 3 74 92 37 271 195 Explosive 84 | . . . 1 5 1 3 2 2 . . 1 . . . . 7 . . 5 5 . 4 . . 2 . . 12 34 Electromagnetic . | . . . . . . . . . . . . . . . . . . . . . . . . . . . . . . Robot Hit Streak 32 | . 6 13 6 11 14 13 10 17 . 14 11 15 25 3 7 17 5 20 7 12 3 4 . . 9 24 22 32 15 Robot Miss Streak 6 | . 1 3 2 6 4 3 . 1 . 1 4 2 1 . 2 4 3 2 2 4 2 4 . . 6 2 3 5 4 Penetration Max 2 | . . . . . . . . . . . . 1 . . . 1 . 1 . 1 . . . . . 1 1 2 1 Secondary Targets 31 | . . 1 1 4 3 1 . . . . . . . . . . . 2 . 4 1 . . . 2 4 . 8 . Max Gunslinging Chain 1 | . . 1 1 1 1 1 . . . . . . . . . . . 1 . 1 1 . . . 1 1 . 1 . Shots Hit Robots 1751 | . 22 122 19 124 110 49 10 9 . 45 33 97 22 2 7 76 15 65 17 118 5 18 1 . 73 89 79 313 211 Core Hits 1113 | . 11 50 12 57 58 33 7 10 . 14 12 45 8 . 30 61 7 32 18 82 4 25 1 . 46 47 27 194 222 Critical Kills 61 | . . 1 . . . . . . . 1 . 3 . . . 2 . 1 . 5 1 . . . . 11 3 26 7 Critical Parts Destroyed 61 | . . . . 1 1 . . . . . 1 . . . . 4 . 1 . 6 . . . . 2 2 6 34 3 Critical Strikes 179 | . . 11 1 4 7 4 . . . 1 1 4 . . . 6 . 2 . 17 1 . . . 3 16 10 71 20 Burn 27 | . . 10 1 3 6 4 . . . . . . . . . . . . . 2 . . . . 1 . . . . Meltdown 9 | . . . . . . . . . . 1 . 3 . . . 2 . . . . . . . . . . . . 3 Destroy 126 | . . 1 . . . . . . . . 1 . . . . 4 . 2 . 12 1 . . . 2 16 10 70 7 Blast 5 | . . . . . . . . . . . . 1 . . . . . . . . . . . . . . . . 4 Smash 2 | . . . . 1 1 . . . . . . . . . . . . . . . . . . . . . . . . Sever 10 | . . . . . . . . . . . . . . . . . . . . 3 . . . . . . . 1 6 Melee Attacks 72 | . . 5 . 13 1 . . . . . . . . . . . . 4 . 11 . . 1 1 7 5 . 24 . Impact 19 | . . 5 . 13 1 . . . . . . . . . . . . . . . . . . . . . . . . Slashing 53 | . . . . . . . . . . . . . . . . . . 4 . 11 . . 1 1 7 5 . 24 . Piercing . | . . . . . . . . . . . . . . . . . . . . . . . . . . . . . . Sneak Attacks 5 | . . . . 4 . . . . . . . . . . . . . . . 1 . . . . . . . . . Combat Hostiles . | . . . . . . . . . . . . . . . . . . . . . . . . . . . . . . Follow-up Attacks . | . . . . . . . . . . . . . . . . . . . . . . . . . . . . . . Damage Inflicted 79423 | . 222 2124 500 3060 2481 1841 561 381 . 1237 1041 2674 655 60 2014 3907 757 2040 1469 5057 112 1937 78 . 3052 2221 1518 13420 25004 Guns 32501 | . 222 2124 368 2347 2106 166 . . . . 343 1143 258 . 75 398 . 2040 345 2689 112 227 . . 1923 1826 1322 8143 4324 Cannons 11721 | . . . . . . 1107 223 187 . 1237 538 1520 397 57 139 2096 605 . . . . 222 . . 117 395 196 420 2265 Explosions 33180 | . . . 132 395 318 568 338 194 . . 151 . . . 1800 1383 152 . 988 2049 . 1488 . . 869 . . 4565 17790 Melee 655 | . . . . 318 57 . . . . . . . . . . . . . . 94 . . 78 . 53 . . 55 . Ramming 107 | . . . . . . . . . . . 9 11 . 3 . 30 . . . . . . . . . . . 9 45 Kinetic 11900 | . 222 433 . 565 409 46 . . . . 225 601 . . 75 398 . 634 78 1230 18 364 . . 826 217 728 2658 2173 Thermal 33339 | . . 1691 368 1782 1697 1227 223 187 . 1237 687 2062 655 57 139 2205 757 1406 267 1837 94 85 . . 1214 2004 790 5905 4763 Explosive 30300 | . . . 132 395 318 568 338 194 . . 120 . . . . 1211 . . 988 1671 . 1488 . . 869 . . 4565 17443 Electromagnetic 1863 | . . . . . . . . . . . . . . . 1800 63 . . . . . . . . . . . . . Impact 375 | . . . . 318 57 . . . . . . . . . . . . . . . . . . . . . . . . Slashing 1539 | . . . . . . . . . . . . . . . . . . . 136 319 . . 78 . 143 . . 283 580 Piercing . | . . . . . . . . . . . . . . . . . . . . . . . . . . . . . . Highest Corruption 11 | . . . . . . 4 4 4 . . . . . . 11 1 . . . 7 . . . . 3 8 . 10 1 Average Corruption 3 | . . . . . . 3 4 3 . . . . . . 3 1 . . . 2 . . . . 2 5 . 4 1 Corruption Purged 26 | . . . . . . . . 4 . . . . . . . 2 . . . 7 . . . . . . . 13 . Corruption Blocked 42 | . . . . . . . . . . . . . . . . . . . . . . . . . . . 23 9 10 Effects 157 | . . . . . . 23 4 6 . . . . . . 3 1 . . . 25 . . . . 21 33 . 41 . Message Errors 38 | . . . . . . 3 1 1 . . . . . . . . . . . 9 . . . . 3 12 . 9 . Matter Fused 30 | . . . . . . 4 . 2 . . . . . . 1 . . . . 6 . . . . 3 8 . 6 . Heat Flow Errors 23 | . . . . . . 6 1 1 . . . . . . . . . . . 1 . . . . 3 2 . 9 . Energy Discharges 21 | . . . . . . 3 . . . . . . . . 1 . . . . 4 . . . . 6 1 . 6 . Parts Rejected 6 | . . . . . . 1 . . . . . . . . . . . . . 1 . . . . . . . 4 . Data Loss (minor) 19 | . . . . . . 4 1 2 . . . . . . 1 1 . . . . . . . . 1 4 . 5 . Data Loss (major) 7 | . . . . . . 1 1 . . . . . . . . . . . . 1 . . . . 1 2 . 1 . Misfires 5 | . . . . . . . . . . . . . . . . . . . . . . . . . 3 1 . 1 . Alerts 3 | . . . . . . . . . . . . . . . . . . . . 1 . . . . 1 1 . . . Weapon Failures 5 | . . . . . . 1 . . . . . . . . . . . . . 2 . . . . . 2 . . . Overload Shots 19 | . . . . . . 4 . . . . 3 . . . . . . . . 11 1 . . . . . . . . Effects 2 | . . . . . . 1 . . . . . . . . . . . . . 1 . . . . . . . . . Energy Bleed 1 | . . . . . . . . . . . . . . . . . . . . 1 . . . . . . . . . Heat Surge 1 | . . . . . . 1 . . . . . . . . . . . . . . . . . . . . . . . Overflow Damage 1696 | . . . . 153 57 80 8 . . 18 59 2 . . 33 97 . . 38 56 . 54 . . 10 . . 306 725 Projectiles 273 | . . . . . . 31 6 . . 18 10 2 . . . 66 . . . . . . . . 10 . . 34 96 Explosions 1269 | . . . . 71 . 49 2 . . . 49 . . . 33 16 . . 38 56 . 54 . . . . . 272 629 Melee 154 | . . . . 82 57 . . . . . . . . . . 15 . . . . . . . . . . . . . Knockbacks 7 | . . . . . . . . . . . 1 . . . . . . . . . . 2 . . . . . 1 3 Impact 3 | . . . . . . . . . . . 1 . . . . . . . . . . . . . . . . 1 1 Kinetic 4 | . . . . . . . . . . . . . . . . . . . . . . 2 . . . . . . 2 Secondary . | . . . . . . . . . . . . . . . . . . . . . . . . . . . . . . Self-Inflicted Damage 1447 | . . . . 131 44 . . . . . 141 . . . 299 56 62 . . 143 . . . . . . . 192 379 Shots 22 | . . . . 3 1 . . . . . 2 . . . 3 3 1 . . 3 . . . . . . . 2 4 Rammed 10 | . . . . . . . . . . . 1 1 . 1 . 1 . . . . . . . . . . . 2 4 Targets Rammed 10 | . . . . . . . . . . . 1 1 . 1 . 1 . . . . . . . . . . . 2 4 Kicked . | . . . . . . . . . . . . . . . . . . . . . . . . . . . . . . Crushed . | . . . . . . . . . . . . . . . . . . . . . . . . . . . . . . Highest Temperature 484 | . 22 274 197 388 484 249 223 199 . . 6 72 180 . 199 273 297 204 246 348 234 239 . . 198 196 195 186 199 Average Temperature 88 | . 6 89 72 108 111 84 121 122 . . 6 18 87 . 77 107 131 50 81 85 104 88 . . 71 101 70 46 92 Received Heat Transfer 5094 | . 168 360 . 729 558 177 126 18 . 123 30 267 44 . 30 351 162 63 51 274 . 66 . . 84 128 152 233 900 Effects 5 | . . . . 1 4 . . . . . . . . . . . . . . . . . . . . . . . . Shutdowns 2 | . . . . . 2 . . . . . . . . . . . . . . . . . . . . . . . . Energy Bleed 1 | . . . . 1 . . . . . . . . . . . . . . . . . . . . . . . . . Interference 1 | . . . . . 1 . . . . . . . . . . . . . . . . . . . . . . . . Matter Decay 1 | . . . . . 1 . . . . . . . . . . . . . . . . . . . . . . . . Siege Activations 21 | . . . . . . . . . . . . . . . . . . . . 1 1 . . . 2 6 2 9 . Total Turns 372 | . . . . . . . . . . . . . . . . . . . . 18 7 . . . 26 110 46 165 . Longest Duration 57 | . . . . . . . . . . . . . . . . . . . . 18 7 . . . 15 37 36 57 . Robots Corrupted 4 | . . . . . . . . . . . . . . . 4 . . . . . . . . . . . . . . Combat Hostiles . | . . . . . . . . . . . . . . . . . . . . . . . . . . . . . . Parts Fried 22 | . . . . 3 1 . . . . . . 5 . . 12 . . 1 . . . . . . . . . . . Impact Corruptions 7 | . . . . 4 2 . . . . . . . . . . 1 . . . . . . . . . . . . . Robots Melted 16 | . . 1 . 1 . 1 . . . 1 . 4 . . . 2 . 2 . . . . . . . . . . 4 Combat Hostiles 15 | . . 1 . 1 . 1 . . . 1 . 4 . . . 1 . 2 . . . . . . . . . . 4 Parts Melted 102 | . . 11 1 5 9 6 . . . 6 1 14 . . . 4 . 6 . 4 . . . . 2 8 . 20 5 Heat Transferred 44516 | . . 3996 814 3737 3589 1961 296 259 . 1665 978 3445 905 87 100 1700 250 1592 333 2557 148 124 . . 1517 2331 888 6845 4399 Parts Sabotaged 5 | . . . . . . . . . . . . . . . . . . . . . . . . . . . . 3 2 Parts Stolen . | . . . . . . . . . . . . . . . . . . . . . . . . . . . . . . Parts Stripped . | . . . . . . . . . . . . . . . . . . . . . . . . . . . . . . Power Chain Reactions 7 | . . . . . . . . . . . . . . . 1 1 2 . . . . . . . . . . . 3 Missiles Intercepted . | . . . . . . . . . . . . . . . . . . . . . . . . . . . . . . Alert | -11 -10 -9 -9 -8 -8 -7 -7 -7 -7 -6 -6 -6 -6 -6 -6 -5 -5 -5 -4 -4 -4 -4 -4 -3 -3 -3 -2 -1 -1 ------- Run | Scr Mat Mat Min Mat Sto Fac Low Low Zio Pro Fac Ext Cet Arc Hub Fac Upp War Pro Fac Upp Upp Zhi Pro Res Tes Res Acc Com Peak Influence 3707 | . 225 757 525 497 425 385 . . . . 291 290 332 337 1283 842 . . . 695 . . . . 406 455 340 2222 3707 Initial 1402 | . . 94 295 97 83 189 . . . . . 36 67 132 117 628 . . . . . . . . . 114 225 36 1402 Average 456 | . 125 372 376 196 295 216 . . . . 117 120 168 313 359 532 . . . 404 . . . . 220 250 176 963 2038 Maximum Alert Level 5 | . 1 3 2 2 2 1 . . . . 1 1 1 1 4 3 . . . 2 . . . . 2 2 1 5 5 Low Security (%) 31 | 100 74 21 6 60 17 36 . . . . 89 81 77 12 25 2 . . . 28 . . . . 23 38 55 2 . Level 1 34 | . 25 33 59 28 66 63 . . . . 10 18 22 87 38 17 . . . 10 . . . . 75 50 44 17 . Level 2 20 | . . 36 33 11 16 . . . . . . . . . 25 73 . . . 61 . . . . 1 10 . 20 . Level 3 3 | . . 8 . . . . . . . . . . . . 9 6 . . . . . . . . . . . 16 . Level 4 4 | . . . . . . . . . . . . . . . 1 . . . . . . . . . . . . 25 27 Level 5 3 | . . . . . . . . . . . . . . . . . . . . . . . . . . . . 14 30 High Security 2 | . . . . . . . . . . . . . . . . . . . . . . . . . . . . 3 41 Max Security . | . . . . . . . . . . . . . . . . . . . . . . . . . . . . . . Squads Dispatched 92 | . 1 6 . 6 4 5 . . . . 3 . . . 3 8 . . . 7 . . . . 3 7 . 21 18 Investigation 11 | . . 3 . . . 1 . . . . 1 . . . 1 2 . . . 1 . . . . . . . 1 1 Extermination 20 | . . . . . . 2 . . . . 1 . . . 1 1 . . . 3 . . . . 2 2 . 7 1 Reinforcement 30 | . 1 3 . 5 3 2 . . . . 1 . . . . 4 . . . 2 . . . . 1 4 . 4 . Assault 23 | . . . . . . . . . . . . . . . 1 1 . . . 1 . . . . . 1 . 3 16 Garrison 8 | . . . . 1 1 . . . . . . . . . . . . . . . . . . . . . . 6 . Intercept . | . . . . . . . . . . . . . . . . . . . . . . . . . . . . . . Searches Triggered . | . . . . . . . . . . . . . . . . . . . . . . . . . . . . . . Construction Impeded 3 | . . . . . . . . . . . 1 . . . . 1 . . . . . . . . . . . 1 . Haulers Reinforced 3 | . . . . . . . . . . . . . . . . . . . . 1 . . . . . . . 2 . Active Scanning Responses . | . . . . . . . . . . . . . . . . . . . . . . . . . . . . . . Cargo Convoy Interrupts 1 | . . . . . . . . . . . . . . . . 1 . . . . . . . . . . . . . Stealth | -11 -10 -9 -9 -8 -8 -7 -7 -7 -7 -6 -6 -6 -6 -6 -6 -5 -5 -5 -4 -4 -4 -4 -4 -3 -3 -3 -2 -1 -1 --------- Run | Scr Mat Mat Min Mat Sto Fac Low Low Zio Pro Fac Ext Cet Arc Hub Fac Upp War Pro Fac Upp Upp Zhi Pro Res Tes Res Acc Com Distress Signals 41 | . 1 5 . 5 6 1 . . . . . 2 1 . 1 1 . 1 . 3 . . . . . 2 5 2 5 Communications Jammed 28 | . . . . . . . . . . . . . . . . . . . . . . . . . 2 26 . . . Distress Signals 27 | . . . . . . . . . . . . . . . . . . . . . . . . . 2 25 . . . Times Spotted 697 | . 10 50 12 43 33 19 5 5 1 7 15 19 8 4 12 43 4 36 10 42 2 12 . . 26 33 20 110 116 Peak Tracking Total 21 | . 4 6 4 6 7 6 4 3 1 4 4 4 5 1 6 9 3 11 6 7 2 5 . . 6 6 10 8 21 Tactical Retreats 24 | . 1 3 1 1 . 1 . . . . . . . . . 4 . 3 1 1 . . . . . 3 1 1 3 Traps | -11 -10 -9 -9 -8 -8 -7 -7 -7 -7 -6 -6 -6 -6 -6 -6 -5 -5 -5 -4 -4 -4 -4 -4 -3 -3 -3 -2 -1 -1 ------- Run | Scr Mat Mat Min Mat Sto Fac Low Low Zio Pro Fac Ext Cet Arc Hub Fac Upp War Pro Fac Upp Upp Zhi Pro Res Tes Res Acc Com Traps Triggered 15 | . . 1 . . . 3 . . . . . . . . 3 1 . . . 2 . . . . 1 1 . 1 2 Indirectly 2 | . . . . . . . . . . . . . . . 2 . . . . . . . . . . . . . . Trap Hack Attempts . | . . . . . . . . . . . . . . . . . . . . . . . . . . . . . . Triggered . | . . . . . . . . . . . . . . . . . . . . . . . . . . . . . . Disarmed . | . . . . . . . . . . . . . . . . . . . . . . . . . . . . . . Reprogrammed . | . . . . . . . . . . . . . . . . . . . . . . . . . . . . . . Reused . | . . . . . . . . . . . . . . . . . . . . . . . . . . . . . . Traps Extracted . | . . . . . . . . . . . . . . . . . . . . . . . . . . . . . . Installed . | . . . . . . . . . . . . . . . . . . . . . . . . . . . . . . Triggered 10 | . . . . . . . . . . . . . . . . 2 2 6 . . . . . . . . . . . Machines | -11 -10 -9 -9 -8 -8 -7 -7 -7 -7 -6 -6 -6 -6 -6 -6 -5 -5 -5 -4 -4 -4 -4 -4 -3 -3 -3 -2 -1 -1 ---------- Run | Scr Mat Mat Min Mat Sto Fac Low Low Zio Pro Fac Ext Cet Arc Hub Fac Upp War Pro Fac Upp Upp Zhi Pro Res Tes Res Acc Com Machines Disabled 88 | . . 3 . 4 5 2 . . . . 8 1 . 2 28 9 . 1 . 14 . . . . 1 2 . 6 2 Max in Single Turn 13 | . . 1 . 1 1 1 . . . . 6 1 . . 13 2 . 1 . 8 . . . . 1 1 . 2 1 Garrison Access 3 | . . . . 1 . 1 . . . . . . . . . . . . . . . . . . . . 1 . . Network Hub 3 | . . . . . . . . . . . . . . . 3 . . . . . . . . . . . . . . Machines Sabotaged . | . . . . . . . . . . . . . . . . . . . . . . . . . . . . . . Garrisons Compromised 1 | . . . . . . . . . . . . . . . . 1 . . . . . . . . . . . . . Overloaded Fab Kills . | . . . . . . . . . . . . . . . . . . . . . . . . . . . . . . Hacking | -11 -10 -9 -9 -8 -8 -7 -7 -7 -7 -6 -6 -6 -6 -6 -6 -5 -5 -5 -4 -4 -4 -4 -4 -3 -3 -3 -2 -1 -1 --------- Run | Scr Mat Mat Min Mat Sto Fac Low Low Zio Pro Fac Ext Cet Arc Hub Fac Upp War Pro Fac Upp Upp Zhi Pro Res Tes Res Acc Com Machines Accessed 76 | . . 13 . 8 5 5 . . . . 7 3 . . 1 4 . 3 . 6 1 . 4 . 4 5 1 5 1 Terminals 36 | . . 9 . 5 5 3 . . . . 3 3 . . 1 1 . . . 1 . . . . 1 1 . 2 1 Fabricators 7 | . . . . . . 1 . . . . 1 . . . . 2 . . . 1 . . . . . 1 1 . . Repair Stations 9 | . . 2 . . . . . . . . 1 . . . . . . . . 3 . . . . 1 1 . 1 . Recycling Units 3 | . . . . 1 . . . . . . . . . . . 1 . . . 1 . . . . . . . . . Scanalyzers 6 | . . 2 . 1 . . . . . . 1 . . . . . . . . . . . . . 1 1 . . . Garrison Access 7 | . . . . 1 . 1 . . . . 1 . . . . . . . . . . . . . 1 1 . 2 . Total Hacks 256 | . . 46 . 24 13 10 . . . . 23 5 . . 3 24 . 7 . 25 1 . 17 . 11 9 5 24 9 Successful 126 | . . 27 . 13 9 3 . . . . 10 2 . . . 10 . 7 . 10 1 . 17 . 6 5 2 4 . Failed 130 | . . 19 . 11 4 7 . . . . 13 3 . . 3 14 . . . 15 . . . . 5 4 3 20 9 Catastrophic 35 | . . 2 . 2 1 3 . . . . 3 . . . . 3 . . . 3 . . . . 3 2 1 9 3 Database Lockouts . | . . . . . . . . . . . . . . . . . . . . . . . . . . . . . . Manual 88 | . . 18 . 12 5 4 . . . . 10 2 1 . 3 18 . . . 5 . . . . . 2 2 6 . Terminals 116 | . . 26 . 17 13 5 . . . . 9 5 . . 3 9 . . . 2 . . . . 1 3 . 14 9 Fabricators 28 | . . . . . . 3 . . . . 3 . . . . 11 . . . 5 . . . . . 1 5 . . Repair Stations 44 | . . 8 . . . . . . . . 4 . . . . . . . . 17 . . . . 8 2 . 5 . Recycling Units 7 | . . . . 2 . . . . . . . . . . . 4 . . . 1 . . . . . . . . . Scanalyzers 22 | . . 12 . 2 . . . . . . 5 . . . . . . . . . . . . . 1 2 . . . Garrison Access 14 | . . . . 3 . 2 . . . . 2 . . . . . . . . . . . . . 1 1 . 5 . Terminal Hacks 63 | . . 9 . 7 7 1 . . . . 3 2 . . . 4 . 7 . 1 1 . 17 . . 1 . 3 . Record 12 | . . . . . . . . . . . . . . . . . . 7 . . . . 5 . . . . . . Part Schematic 10 | . . 3 . . . 1 . . . . . 1 . . . 1 . . . . . . 4 . . . . . . Robot Analysis 8 | . . 2 . . 1 . . . . . 1 . . . . . . . . . . . 4 . . . . . . Prototype ID Bank 6 | . . 2 . . . . . . . . . . . . . . . . . . . . 4 . . . . . . Open Door 3 | . . . . . 2 . . . . . . . . . . . . . . . 1 . . . . . . . . Branch Access Points 2 | . . . . 1 . . . . . . . . . . . . . . . . . . . . . . . 1 . Emergency Access Points 1 | . . . . . . . . . . . . . . . . 1 . . . . . . . . . . . . . Terminal Index 1 | . . . . . . . . . . . . . . . . . . . . . . . . . . 1 . . . Fabricator Index 1 | . . . . . . . . . . . 1 . . . . . . . . . . . . . . . . . . Garrison Index 1 | . . . . . 1 . . . . . . . . . . . . . . . . . . . . . . . . Alert Level 4 | . . . . 1 . . . . . . . 1 . . . . . . . . . . . . . . . 2 . Unreport Threat 2 | . . . . 2 . . . . . . . . . . . . . . . . . . . . . . . . . Locate Traps 3 | . . 1 . 1 . . . . . . . . . . . 1 . . . . . . . . . . . . . Patrol Status 1 | . . . . . . . . . . . 1 . . . . . . . . . . . . . . . . . . Hauler Manifests 2 | . . . . 1 1 . . . . . . . . . . . . . . . . . . . . . . . . Zone Layout 6 | . . 1 . 1 2 . . . . . . . . . . 1 . . . 1 . . . . . . . . . Fabricator Hacks 9 | . . . . . . . . . . . 1 . . . . 4 . . . 2 . . . . . 1 1 . . Network Status 1 | . . . . . . . . . . . . . . . . 1 . . . . . . . . . . . . . Load Schematic 3 | . . . . . . . . . . . . . . . . 2 . . . 1 . . . . . . . . . Build 5 | . . . . . . . . . . . 1 . . . . 1 . . . 1 . . . . . 1 1 . . Repair Station Hacks 20 | . . 5 . . . . . . . . 2 . . . . . . . . 5 . . . . 6 2 . . . Scan Component 12 | . . 3 . . . . . . . . 1 . . . . . . . . 3 . . . . 4 1 . . . Repair 8 | . . 2 . . . . . . . . 1 . . . . . . . . 2 . . . . 2 1 . . . Recycling Unit Hacks . | . . . . . . . . . . . . . . . . . . . . . . . . . . . . . . Scanalyzer 16 | . . 10 . 2 . . . . . . 4 . . . . . . . . . . . . . . . . . . Insert Component 9 | . . 6 . 1 . . . . . . 2 . . . . . . . . . . . . . . . . . . Analyze 7 | . . 4 . 1 . . . . . . 2 . . . . . . . . . . . . . . . . . . Garrison Access Hacks 2 | . . . . 1 . 1 . . . . . . . . . . . . . . . . . . . . . . . Seal Access 2 | . . . . 1 . 1 . . . . . . . . . . . . . . . . . . . . . . . Unauthorized Hacks 16 | . . 3 . 3 2 1 . . . . . . . . . 2 . . . 2 . . . . . 1 1 1 . Terminals 7 | . . 3 . 2 2 . . . . . . . . . . . . . . . . . . . . . . . . Track 2 | . . 1 . 1 . . . . . . . . . . . . . . . . . . . . . . . . . Botnet 5 | . . 2 . 1 2 . . . . . . . . . . . . . . . . . . . . . . . . Fabricators 4 | . . . . . . 1 . . . . . . . . . 1 . . . 1 . . . . . . 1 . . Prioritize 2 | . . . . . . . . . . . . . . . . . . . . 1 . . . . . . 1 . . Recompile 2 | . . . . . . 1 . . . . . . . . . 1 . . . . . . . . . . . . . Repair Stations 1 | . . . . . . . . . . . . . . . . . . . . . . . . . . . . 1 . Mechanics 1 | . . . . . . . . . . . . . . . . . . . . . . . . . . . . 1 . Recycling Units 3 | . . . . 1 . . . . . . . . . . . 1 . . . 1 . . . . . . . . . Recyclers 3 | . . . . 1 . . . . . . . . . . . 1 . . . 1 . . . . . . . . . Scanalyzers 1 | . . . . . . . . . . . . . . . . . . . . . . . . . . 1 . . . Researchers 1 | . . . . . . . . . . . . . . . . . . . . . . . . . . 1 . . . Garrison Access . | . . . . . . . . . . . . . . . . . . . . . . . . . . . . . . Data Cores Recovered 2 | . . . . . . . . . . . 1 1 . . . . . . . . . . . . . . . . . Used 2 | . . . . . . . . . . . 1 1 . . . . . . . . . . . . . . . . . Hacking Detections 59 | . . 13 . 7 4 4 . . . . 6 3 1 . 1 3 . . . 3 . . . . 4 3 1 5 1 Full Trace Events 8 | . . 2 . . . . . . . . 1 . . . 1 1 . . . 1 . . . . . . . 1 1 Feedback Events . | . . . . . . . . . . . . . . . . . . . . . . . . . . . . . . Feedback Blocked . | . . . . . . . . . . . . . . . . . . . . . . . . . . . . . . Robot Schematics Acquired . | . . . . . . . . . . . . . . . . . . . . . . . . . . . . . . Robots Built . | . . . . . . . . . . . . . . . . . . . . . . . . . . . . . . Authchips . | . . . . . . . . . . . . . . . . . . . . . . . . . . . . . . Time . | . . . . . . . . . . . . . . . . . . . . . . . . . . . . . . Total Robot Build Rating . | . . . . . . . . . . . . . . . . . . . . . . . . . . . . . . Part Schematics Acquired 17 | . . 7 . 1 . 1 . . . . 2 1 . . . 1 . . . . . . 4 . . . . . . Parts Built 8 | . . . . . . . . . . . 2 . . . . 1 . . . 2 . . . . . 2 1 . . Authchips 1 | . . . . . . . . . . . . . . . . . . . . 1 . . . . . . . . . Time 525 | . . . . . . . . . . . 128 . . . . 53 . . . 53 . . . . . 69 222 . . Total Part Build Rating 61 | . . . . . . . . . . . 16 . . . . 6 . . . 12 . . . . . 18 9 . . Parts Repaired 8 | . . 2 . . . . . . . . 1 . . . . . . . . 2 . . . . 2 1 . . . Time 337 | . . 52 . . . . . . . . 70 . . . . . . . . 62 . . . . 97 56 . . . Parts Recycled . | . . . . . . . . . . . . . . . . . . . . . . . . . . . . . . Recycled Matter . | . . . . . . . . . . . . . . . . . . . . . . . . . . . . . . Retrieved Matter . | . . . . . . . . . . . . . . . . . . . . . . . . . . . . . . Retrieved Components . | . . . . . . . . . . . . . . . . . . . . . . . . . . . . . . Parts Scanalyzed 7 | . . 4 . 1 . . . . . . 2 . . . . . . . . . . . . . . . . . . Part Schematics Acquired 7 | . . 4 . 1 . . . . . . 2 . . . . . . . . . . . . . . . . . . Parts Damaged . | . . . . . . . . . . . . . . . . . . . . . . . . . . . . . . Bothacking | -11 -10 -9 -9 -8 -8 -7 -7 -7 -7 -6 -6 -6 -6 -6 -6 -5 -5 -5 -4 -4 -4 -4 -4 -3 -3 -3 -2 -1 -1 ------------ Run | Scr Mat Mat Min Mat Sto Fac Low Low Zio Pro Fac Ext Cet Arc Hub Fac Upp War Pro Fac Upp Upp Zhi Pro Res Tes Res Acc Com Used RIF Installer . | . . . . . . . . . . . . . . . . . . . . . . . . . . . . . . Robots Hacked . | . . . . . . . . . . . . . . . . . . . . . . . . . . . . . . Non-combat . | . . . . . . . . . . . . . . . . . . . . . . . . . . . . . . Combat . | . . . . . . . . . . . . . . . . . . . . . . . . . . . . . . Robot Hacks Applied . | . . . . . . . . . . . . . . . . . . . . . . . . . . . . . . Relay Couplers Released 7 | . . . . 1 . . . . . . . . . . . . . . . . . . . . . . 6 . . Machine Destruction 3 | . . . . 1 . . . . . . . . . . . . . . . . . . . . . . 2 . . Programmers 4 | . . . . . . . . . . . . . . . . . . . . . . . . . . . 4 . . Fabnet Peak Effective % . | . . . . . . . . . . . . . . . . . . . . . . . . . . . . . . Robots Rewired 10 | . . . . . . . . . . . . 10 . . . . . . . . . . . . . . . . . Allies Hacked . | . . . . . . . . . . . . . . . . . . . . . . . . . . . . . . Hacks Repelled . | . . . . . . . . . . . . . . . . . . . . . . . . . . . . . . Allies | -11 -10 -9 -9 -8 -8 -7 -7 -7 -7 -6 -6 -6 -6 -6 -6 -5 -5 -5 -4 -4 -4 -4 -4 -3 -3 -3 -2 -1 -1 -------- Run | Scr Mat Mat Min Mat Sto Fac Low Low Zio Pro Fac Ext Cet Arc Hub Fac Upp War Pro Fac Upp Upp Zhi Pro Res Tes Res Acc Com Total Allies 18 | . . . . . 1 . . . . . 1 11 5 . . . . . . . . . . . . . . . . Largest Group 11 | . . . . . 1 . . . . . 1 11 6 6 5 . . . . . . . . . . . . . . Highest-Rated Group 631 | . . . . . 100 . . . . . 26 410 631 631 480 . . . . . . . . . . . . . . Highest-Rated Ally 159 | . . . . . 100 . . . . . 26 159 159 151 96 . . . . . . . . . . . . . . Total Orders 46 | . . . . . 2 2 3 8 . 2 3 2 1 . 6 2 . . . 3 . . . . 3 4 . 4 1 EXPLORE 12 | . . . . . 1 1 2 5 . 2 . 1 . . . . . . . . . . . . . . . . . RETURN 34 | . . . . . 1 1 1 3 . . 3 1 1 . 6 2 . . . 3 . . . . 3 4 . 4 1 Ally Attacks 105 | . . . . . . . . . . . . 32 27 16 30 . . . . . . . . . . . . . . Total Damage 4272 | . . . . . . . . . . . . 1689 686 628 1269 . . . . . . . . . . . . . . Kills 30 | . . . . . . . . . . . . 10 7 4 9 . . . . . . . . . . . . . . Allies Corrupted 6 | . . . . . 2 . . . . . . . . . 4 . . . . . . . . . . . . . . Allies Melted . | . . . . . . . . . . . . . . . . . . . . . . . . . . . . . . Intel | -11 -10 -9 -9 -8 -8 -7 -7 -7 -7 -6 -6 -6 -6 -6 -6 -5 -5 -5 -4 -4 -4 -4 -4 -3 -3 -3 -2 -1 -1 ------- Run | Scr Mat Mat Min Mat Sto Fac Low Low Zio Pro Fac Ext Cet Arc Hub Fac Upp War Pro Fac Upp Upp Zhi Pro Res Tes Res Acc Com Robot Analysis Total 8 | . . 2 . . 1 . . . . . 1 . . . . . . . . . . . 4 . . . . . . Derelict Logs Recovered 9 | . . . 1 . . . 1 2 1 1 . . . . . . 1 . . . 2 . . . . . . . . Drone Launches 64 | . . . . . 19 4 3 4 . 2 3 3 1 . 6 2 . . . 4 . . . . 3 4 . 4 2 Drone Recoveries 47 | . . . . . 7 2 2 4 . 1 3 3 1 . 6 2 . . . 4 . . . . 3 4 . 4 1 Exploration | -11 -10 -9 -9 -8 -8 -7 -7 -7 -7 -6 -6 -6 -6 -6 -6 -5 -5 -5 -4 -4 -4 -4 -4 -3 -3 -3 -2 -1 -1 ------------- Run | Scr Mat Mat Min Mat Sto Fac Low Low Zio Pro Fac Ext Cet Arc Hub Fac Upp War Pro Fac Upp Upp Zhi Pro Res Tes Res Acc Com Turns Passed 30038 | 25 339 1833 936 1529 1367 1349 302 733 1653 432 1104 1148 350 269 732 1297 804 1632 551 1989 658 550 243 344 1308 1285 1304 2854 1118 Spaces Moved 13746 | 34 238 815 544 508 445 826 214 391 683 192 500 523 119 108 279 555 429 635 263 865 397 288 143 211 609 604 681 1238 409 Core 173 | 34 139 . . . . . . . . . . . . . . . . . . . . . . . . . . . . Treads 12035 | . 99 815 544 508 445 243 . 179 683 81 500 523 119 108 279 137 429 635 263 865 397 288 143 211 609 604 681 1238 409 Legs . | . . . . . . . . . . . . . . . . . . . . . . . . . . . . . . Wheels 1538 | . . . . . . 583 214 212 . 111 . . . . . 418 . . . . . . . . . . . . . Hover . | . . . . . . . . . . . . . . . . . . . . . . . . . . . . . . Flight . | . . . . . . . . . . . . . . . . . . . . . . . . . . . . . . Fastest Speed 50 | 50 50 160 160 160 160 130 130 130 240 130 160 160 240 240 160 160 160 162 164 155 158 158 158 158 158 155 155 150 150 Average Speed 176 | 50 116 168 160 229 235 141 130 180 240 176 171 164 240 240 239 182 175 231 189 170 158 158 158 158 159 155 155 158 162 Slowest Speed 400 | 50 240 240 160 240 400 240 130 240 240 240 240 240 240 240 240 275 240 240 245 245 158 158 158 158 238 158 155 235 170 Overloaded Moves . | . . . . . . . . . . . . . . . . . . . . . . . . . . . . . . Propulsion Burnouts . | . . . . . . . . . . . . . . . . . . . . . . . . . . . . . . Robots Hopped . | . . . . . . . . . . . . . . . . . . . . . . . . . . . . . . Cave-ins Triggered 1 | . . . . . . . . . . . . . . . . . . . . . . . . . . . . 1 . Teleports 1 | . . . . . . . . . . . . . . . . . . . . . . . . . . . . 1 . Exploration Rate (%) 50 | 3 47 82 92 47 93 31 48 80 81 43 23 67 61 79 37 16 51 82 51 26 55 42 60 43 20 66 24 45 17 Regions Visited 29 Branch Regions 19 Pre-discovered Areas 9 | . . . . . . . . 1 3 . . . . . . . . 2 . . . . 3 . . . . . . Known Exits Taken 21 | . . . . 1 . . . . 1 1 1 1 1 1 1 1 1 1 1 1 1 1 1 1 1 1 1 1 . Unknown Exits Taken 8 | 1 1 1 1 . 1 1 1 1 . . . . . . . . . . . . . . . . . . . . . Scrap Searched 18 | . . . 1 . . . 2 3 2 2 . . . . . . 1 . 4 . 2 . . 1 . . . . . Spaces Dug 159 | . . 3 . 8 . 5 . . . . 4 . . . 4 10 3 . 1 28 1 26 . 4 17 13 2 30 . Terrain Destroyed 1975 | . . 3 10 74 10 27 26 23 . 3 64 5 . . 531 75 20 3 81 124 4 118 . 4 53 17 9 209 482 Melee 50 | . . 3 . 8 . . . . . . . . . . . . . . . 10 . . . 1 6 3 . 19 . Projectile 268 | . . . . . . 11 3 3 . 3 5 5 . . 7 41 11 3 5 28 4 21 . 3 21 14 7 32 41 AOE 1647 | . . . 10 66 10 16 23 20 . . 59 . . . 524 34 9 . 76 86 . 97 . . 24 . . 153 440 Terrain Rammed . | . . . . . . . . . . . . . . . . . . . . . . . . . . . . . . Walls Destroyed . | . . . . . . . . . . . . . . . . . . . . . . . . . . . . . . Machines Disabled . | . . . . . . . . . . . . . . . . . . . . . . . . . . . . . . Actions | -11 -10 -9 -9 -8 -8 -7 -7 -7 -7 -6 -6 -6 -6 -6 -6 -5 -5 -5 -4 -4 -4 -4 -4 -3 -3 -3 -2 -1 -1 --------- Run | Scr Mat Mat Min Mat Sto Fac Low Low Zio Pro Fac Ext Cet Arc Hub Fac Upp War Pro Fac Upp Upp Zhi Pro Res Tes Res Acc Com Total 17225 | 39 274 1084 578 698 627 946 226 408 700 238 703 712 167 118 321 711 452 714 289 1195 421 343 159 217 823 840 852 1751 619 Wait 1186 | . 4 100 16 45 48 25 . 3 . 15 137 16 25 1 15 33 10 . 4 119 11 15 . . 93 107 98 225 21 Move 13718 | 33 237 814 543 507 444 825 213 390 682 191 499 522 118 107 278 555 428 634 262 864 396 287 142 210 608 603 680 1237 409 Hop . | . . . . . . . . . . . . . . . . . . . . . . . . . . . . . . Pick Up 226 | 2 9 20 . 13 18 14 . 3 6 2 14 9 4 4 3 13 . 7 . 20 3 4 2 . 12 8 7 17 12 Fast Attach 142 | 4 . 10 . 5 7 8 . . 4 1 3 . 1 . 4 3 . 6 1 17 1 1 4 . 6 16 4 21 15 Attach 113 | . 3 3 1 11 7 5 . 1 . 4 7 4 2 . 2 7 1 5 . 10 . 1 . . 2 1 3 7 26 Detach 28 | . . 3 . 2 1 5 . . . . . . 1 . . 3 . 2 1 2 . . . . 1 1 1 1 4 Swap 283 | . 1 17 2 13 8 11 5 3 . 5 9 8 3 1 5 15 3 4 7 36 2 10 3 2 18 25 14 40 13 Drop 247 | . 3 17 . 8 20 20 2 2 8 . 9 4 3 3 3 12 . 12 . 24 4 4 6 1 15 23 12 26 6 Fire 1076 | . 17 95 16 81 66 33 6 6 . 20 24 43 10 1 11 62 10 40 14 88 4 21 . 3 61 51 33 151 109 Melee 72 | . . 5 . 13 1 . . . . . . . . . . . . 4 . 11 . . 1 1 7 5 . 24 . Ram . | . . . . . . . . . . . . . . . . . . . . . . . . . . . . . . Kick . | . . . . . . . . . . . . . . . . . . . . . . . . . . . . . . Crush 9 | . . . . . . . . . . . 1 1 . 1 . . . . . . . . . . . . . 2 4 Escape Stasis 12 | . . . . . . . . . . . . . . . . 8 . . . 4 . . . . . . . . . Rewire 106 | . . . . . . . . . . . . 105 . . . . . . . . . . 1 . . . . . . Trap . | . . . . . . . . . . . . . . . . . . . . . . . . . . . . . . Miscellaneous 7 | . . . . . 7 . . . . . . . . . . . . . . . . . . . . . . . . Route ------- -11/Scrapyard -10/Materials (discovered 2 exits: *Mat / [*Min]) -9/Materials (discovered 3 exits: *Mat x2 / [*Min]) -9/Mines (discovered 3 exits: *Mat x2 / *Zio) -8/Materials (discovered 3 exits: *Fac / *Sto x2) -8/Storage -7/Factory (discovered 3 exits: *Fac x2 / [*Low]) -7/Lower Caves -7/Lower Caves (discovered 2 exits: *Fac / *Zio) -7/Zion -6/Proximity Caves -6/Factory (discovered 4 exits: Low x2 / *Ext x2) -6/Extension (discovered 2 exits: *Fac / *Cet) -6/Cetus -6/Archives (discovered 3 exits: *Fac / *Hub x2) -6/Hub_04(d) -5/Factory (discovered 6 exits: Fac x4 / *Upp x2) -5/Upper Caves (discovered 2 exits: [*Upp] / *War) -5/Warlord -4/Proximity Caves -4/Factory (discovered 2 exits: Res / *Upp) -4/Upper Caves -4/Upper Caves -4/Zhirov -3/Proximity Caves -3/Research (discovered 6 exits: Res x3 / Arm / *Tes x2) -3/Testing -2/Research (discovered 3 exits: *Acc x3) -1/Access -1/Command History --------- Turn | Location | Event 9 | -11/Scrapyard | Discovered new exit (range 15) 26 | -11/Scrapyard | Entered Materials 215 | -10/Materials | Discovered new exit (range 5) 265 | -10/Materials | Discovered new exit (range 14) 311 | -10/Materials | Build established: Mutant 365 | -10/Materials | Entered another Materials area 365 | -9/Materials | Evolved 2 slots: Propulsion x1, Utility x1 698 | -9/Materials | Repaired Assault Rifle 725 | -9/Materials | Repaired Lgt. Treads 1082 | -9/Materials | Discovered new exit (range 12) 1493 | -9/Materials | Discovered new exit (range 16) 1982 | -9/Materials | Discovered new exit (range 5) 2061 | -9/Materials | Build established: Scavenger-Mutant 2198 | -9/Materials | Entered Mines 2203 | -9/Mines | Met a Derelict bent on vengeance 2245 | -9/Mines | Learned Materials terminal intel 2465 | -9/Mines | Discovered new exit (range 7) 2560 | -9/Mines | Discovered new exit (range 15) 2647 | -9/Mines | Build established: Mutant 2877 | -9/Mines | A Derelict revealed a hidden shortcut to a safe place 3134 | -9/Mines | Entered Materials 3134 | -8/Materials | Evolved 2 slots: Utility x1, Weapon x1 3135 | -8/Materials | Loaded intel: 12 terminal locations 3175 | -8/Materials | Identified exit to Storage 3387 | -8/Materials | Garrison activated, responded to threat 3458 | -8/Materials | Build established: Tank 4178 | -8/Materials | Discovered new exit (range 11) 4299 | -8/Materials | Lost 9 parts (1p3n1u4w) 4663 | -8/Materials | Entered Storage 4755 | -8/Storage | Core integrity fell below 50% 5256 | -8/Storage | Build established: Scavenger-Tank 5509 | -8/Storage | Garrison activated, responded to threat 5980 | -8/Storage | Discovered new exit (range 16) 6014 | -8/Storage | Met 01-MTF 6030 | -8/Storage | Entered Factory 6030 | -7/Factory | Accompanied by 1 ally (01-MTF) 6030 | -7/Factory | Evolved 2 slots: Propulsion x1, Utility x1 6035 | -7/Factory | 01-MTF left 6575 | -7/Factory | Discovered new exit (range 14) 6594 | -7/Factory | Identified exit to Factory 6793 | -7/Factory | Destroyed 8 combat bots 6834 | -7/Factory | Build established: Gunner 7183 | -7/Factory | Discovered exit to Factory (range 16) 7272 | -7/Factory | Discovered new exit (range 10) 7379 | -7/Factory | Entered Lower Caves 7601 | -7/Lower Caves | Discovered new exit (range 43) 7608 | -7/Lower Caves | Learned Factory terminal intel 7681 | -7/Lower Caves | Entered another Lower Caves area 7801 | -7/Lower Caves | Discovered exit to Factory (range 14) 7919 | -7/Lower Caves | Learned Factory non-interactive machine intel 8117 | -7/Lower Caves | Learned location of Zion (-7) 8332 | -7/Lower Caves | Discovered new exit (range 29) 8414 | -7/Lower Caves | Entered Zion 8551 | -7/Zion | Discovered new exit (range 16) 8582 | -7/Zion | Given the Hacking Drone Bay 8583 | -7/Zion | Found Prototype Device 8630 | -7/Zion | Found CR-A16's Pointy Stick 8775 | -7/Zion | Given A8's code to call for help 9070 | -7/Zion | Learned location of Data Miner (-6) 9363 | -7/Zion | Learned location of Warlord (-5) 9848 | -7/Zion | Found Prototype Processor 9848 | -7/Zion | Identified Exp. Signal Interpreter 9852 | -7/Zion | Found Prototype Processor 9852 | -7/Zion | Identified Exp. Melee Analysis Suite 10065 | -7/Zion | Identified exit to Proximity Caves 10067 | -7/Zion | Entered Proximity Caves 10142 | -6/Proximity Caves | Spotted B-75 Beast 10166 | -6/Proximity Caves | Destroyed B-75 Beast 10417 | -6/Proximity Caves | Discovered exit to Factory (range 13) 10424 | -6/Proximity Caves | Lost 3 parts (1n1u1w) 10446 | -6/Proximity Caves | Learned Factory terminal intel 10499 | -6/Proximity Caves | Entered Factory 10499 | -6/Factory | Evolved 2 slots: Utility x2 10500 | -6/Factory | Loaded intel: 226 non-interactive machine locations 10501 | -6/Factory | Loaded intel: 28 terminal locations 10523 | -6/Factory | Identified Hacking Drone Bay 10726 | -6/Factory | Lost 3 parts (1u2w) 10862 | -6/Factory | Identified exit to Lower Caves 10862 | -6/Factory | Identified exit to Extension 11337 | -6/Factory | Fabricated Quantum Rifle? 11503 | -6/Factory | Repaired Enh. Nuclear Core 11603 | -6/Factory | Entered Extension 11603 | -6/Extension | Accompanied by 1 ally 12223 | -6/Extension | Rescued A7 12377 | -6/Extension | Build established: Commander-Gunner 12422 | -6/Extension | Spotted B-75 Beast 12433 | -6/Extension | Destroyed B-75 Beast 12444 | -6/Extension | Spotted B-75 Beast 12471 | -6/Extension | Destroyed B-75 Beast 12487 | -6/Extension | Lost 4 parts (2u2w) 12666 | -6/Extension | Discovered new exit (range 16) 12666 | -6/Extension | Discovered new exit (range 16) 12738 | -6/Extension | Identified exit to Cetus 12751 | -6/Extension | Entered Cetus 12751 | -6/Cetus | Accompanied by 1 ally (A7) 12756 | -6/Cetus | Acquired a Cetus Manufacturing Module code from A7 12785 | -6/Cetus | Spotted Cetus Guard 12785 | -6/Cetus | Spotted Cetus Guard 12794 | -6/Cetus | Spotted Cetus Guard 12796 | -6/Cetus | Allies destroyed Cetus Guard 12796 | -6/Cetus | Spotted Cetus Guard 12802 | -6/Cetus | Destroyed Cetus Guard 12808 | -6/Cetus | Allies destroyed Cetus Guard 12822 | -6/Cetus | Allies destroyed Cetus Guard 12926 | -6/Cetus | Started Cetus Manufacturing Module 12947 | -6/Cetus | Escorted A7 to Cetus Mainframe 12951 | -6/Cetus | Manufactured an Enhanced Grunt 12976 | -6/Cetus | Manufactured an Enhanced Grunt 13001 | -6/Cetus | Manufactured an Enhanced Grunt 13026 | -6/Cetus | Manufactured an Enhanced Grunt 13051 | -6/Cetus | Manufactured an Enhanced Grunt 13065 | -6/Cetus | Discovered new exit (range 15) 13099 | -6/Cetus | Identified exit to Archives 13101 | -6/Cetus | Entered Archives 13101 | -6/Archives | Accompanied by 6 allies (A7) 13106 | -6/Archives | Received a hacking code to weaken MAIN.C 13169 | -6/Archives | Discovered new exit (range 16) 13211 | -6/Archives | Discovered new exit (range 14) 13296 | -6/Archives | Discovered new exit (range 15) 13325 | -6/Archives | Unable to access archive contents 13367 | -6/Archives | Identified exit to Hub_04(d) 13370 | -6/Archives | Entered Hub_04(d) 13370 | -6/Hub_04(d) | Accompanied by 5 allies 13879 | -6/Hub_04(d) | Discovered new exit (range 8) 13994 | -6/Hub_04(d) | Network Hub disabled 14022 | -6/Hub_04(d) | Network Hub disabled 14070 | -6/Hub_04(d) | First assault squad dispatched 14086 | -6/Hub_04(d) | Identified exit to Factory 14094 | -6/Hub_04(d) | Network Hub disabled 14095 | -6/Hub_04(d) | Spotted Lightning 14100 | -6/Hub_04(d) | Spotted Lightning 14101 | -6/Hub_04(d) | Spotted Lightning 14102 | -6/Hub_04(d) | System corruption reached 10% 14102 | -6/Hub_04(d) | Entered Factory 14102 | -5/Factory | Evolved 2 slots: Power x1, Propulsion x1 14103 | -5/Factory | Loaded intel: 26 terminal locations 14588 | -5/Factory | Build established: Scavenger-Mutant 14702 | -5/Factory | First assault squad dispatched 14702 | -5/Factory | Destroyed 8 combat bots 14856 | -5/Factory | Cargo convoy interrupted 14877 | -5/Factory | Identified exit to Upper Caves 14878 | -5/Factory | Identified exit to Factory 14901 | -5/Factory | Fabricated Imp. Powered Armor (x1) 15366 | -5/Factory | Destroyed 10 combat bots 15399 | -5/Factory | Entered Upper Caves 15572 | -5/Upper Caves | A Derelict revealed a hidden shortcut to "reach the base" 15699 | -5/Upper Caves | Build established: Scavenger-Skirmisher 15755 | -5/Upper Caves | Learned Factory machine intel 15932 | -5/Upper Caves | Discovered new exit (range 8) 16200 | -5/Upper Caves | Identified exit to Warlord 16203 | -5/Upper Caves | Entered Warlord 16261 | -5/Warlord | Discovered new exit (range 15) 16302 | -5/Warlord | Build established: Mutant 16565 | -5/Warlord | Learned Armory terminal intel 16568 | -5/Warlord | Learned 4 Research zone layouts 16568 | -5/Warlord | Learned 4 Access zone layouts 16570 | -5/Warlord | Learned location of Armory (-3) 16570 | -5/Warlord | Learned Armory trap positions 17151 | -5/Warlord | Found Prototype Special Weapon 17154 | -5/Warlord | Found Prototype Special Weapon 17158 | -5/Warlord | Found Prototype Special Weapon 17162 | -5/Warlord | Found Prototype Special Weapon 17328 | -5/Warlord | Warlord's base attacked by MAIN.C 17331 | -5/Warlord | Met Warlord 17398 | -5/Warlord | Found Prototype Device 17398 | -5/Warlord | Identified Exp. Phase Shifter 17412 | -5/Warlord | Found Prototype Processor 17412 | -5/Warlord | Identified Exp. Core Analyzer 17432 | -5/Warlord | Found Prototype Reactor 17652 | -5/Warlord | Spotted Executioner 17678 | -5/Warlord | Warlord forces counterattacked 17687 | -5/Warlord | Destroyed Executioner 17704 | -5/Warlord | Spotted Striker 17711 | -5/Warlord | Spotted Striker 17721 | -5/Warlord | Destroyed 7 combat bots 17745 | -5/Warlord | Spotted B-86 Titan 17763 | -5/Warlord | Spotted Executioner 17777 | -5/Warlord | Destroyed Executioner 17833 | -5/Warlord | Identified exit to Proximity Caves 17835 | -5/Warlord | Entered Proximity Caves 17913 | -4/Proximity Caves | Build established: Scavenger-Gunner 18155 | -4/Proximity Caves | Spotted B-86 Titan 18165 | -4/Proximity Caves | Identified RU-N14's Throwing Claymores v3 (x4) 18166 | -4/Proximity Caves | Discovered exit to Factory (range 12) 18170 | -4/Proximity Caves | Destroyed B-86 Titan 18386 | -4/Proximity Caves | Entered Factory 18386 | -4/Factory | Evolved 2 slots: Propulsion x1, Utility x1 18387 | -4/Factory | Loaded intel: 270 machine locations 18405 | -4/Factory | Discovered new exit (range 15) 18473 | -4/Factory | Identified exit to Upper Caves 18719 | -4/Factory | Build established: Scavenger-Skirmisher 18758 | -4/Factory | Fabricated Hvy. Treads (x2) 18845 | -4/Factory | Repaired Quantum Rifle 19239 | -4/Factory | Repaired Arm. Medium Treads 19386 | -4/Factory | First assault squad dispatched 19441 | -4/Factory | Spotted B-86 Titan 19616 | -4/Factory | Discovered new exit (range 20) 20375 | -4/Factory | Entered Upper Caves 20387 | -4/Upper Caves | Build established: Scavenger-Mutant 20648 | -4/Upper Caves | Learned 4 Research zone layouts 20761 | -4/Upper Caves | Build established: Scavenger-Skirmisher 20793 | -4/Upper Caves | Learned location of 1 exit from Proximity Caves 20948 | -4/Upper Caves | Discovered new exit (range 11) 21010 | -4/Upper Caves | Identified exit to Upper Caves 21033 | -4/Upper Caves | Entered another Upper Caves area 21484 | -4/Upper Caves | Discovered new exit (range 15) 21540 | -4/Upper Caves | Identified exit to Zhirov 21556 | -4/Upper Caves | Found Imp. Powered Armor 21583 | -4/Upper Caves | Entered Zhirov 21583 | -4/Zhirov | Discovered new exit (range 3) 21612 | -4/Zhirov | Met Zhirov 21642 | -4/Zhirov | Learned location of Quarantine (-2) 21642 | -4/Zhirov | Learned location of Testing (-3) 21642 | -4/Zhirov | Learned location of Command (-1) 21656 | -4/Zhirov | Zhirov requested help retrieving the SGEMP Prototype 21680 | -4/Zhirov | Found Alien Artifact 21680 | -4/Zhirov | Identified Integrated Dissipator 21680 | -4/Zhirov | Installed Integrated Dissipator, increased core heat dissipation (+20) 21703 | -4/Zhirov | Found Alien Artifact 21825 | -4/Zhirov | Identified exit to Proximity Caves 21826 | -4/Zhirov | Entered Proximity Caves 21827 | -3/Proximity Caves | Identified exit to Research 22170 | -3/Proximity Caves | Entered Research 22170 | -3/Research | Evolved 2 slots: Power x1, Utility x1 22171 | -3/Research | Identified exit to Testing 22172 | -3/Research | Identified exit to Research 22210 | -3/Research | Build established: Scavenger-Mutant 22507 | -3/Research | Destroyed 7 combat bots 22958 | -3/Research | Repaired Broken Imp. Heavy Treads 23014 | -3/Research | Repaired Centrium Medium Armor Plating 23253 | -3/Research | Identified exit to Armory 23478 | -3/Research | Entered Testing 23506 | -3/Testing | Found Prototype Energy Gun 23506 | -3/Testing | Identified Warp Gun 23515 | -3/Testing | Protovariant out of control (PH-WDEC07WWWN) 23529 | -3/Testing | Build established: Generator-Mutant 23697 | -3/Testing | Found Prototype Device 23697 | -3/Testing | Identified Exp. Thermal Shield 23919 | -3/Testing | Repaired Imp. Powered Armor 24019 | -3/Testing | Fabricated Adv. Heavy Siege Treads? 24234 | -3/Testing | Scanned by Researcher 24291 | -3/Testing | Destroyed 9 combat bots 24428 | -3/Testing | Discovered exit to Research (range 15) 24517 | -3/Testing | Found Prototype Processor 24517 | -3/Testing | Identified Spectral Analyzer 24763 | -3/Testing | Entered Research 24763 | -2/Research | Warlord forces began assault on 0b10 24763 | -2/Research | Evolved 2 slots: Utility x1, Weapon x1 24873 | -2/Research | Research machine network offline 24906 | -2/Research | Fabricated Exp. Force Field (x1) 25009 | -2/Research | Build established: Generator-Tank 25197 | -2/Research | Borebot progress halted 25209 | -2/Research | Borebot progress halted 25336 | -2/Research | Build established: Generator-Skirmisher 25348 | -2/Research | Spotted Executioner 25363 | -2/Research | Spotted Striker 25373 | -2/Research | Met up with Warlord 25374 | -2/Research | Discovered new exit (range 9) 25398 | -2/Research | Spotted Executioner 25404 | -2/Research | Spotted X1-QOS(g) 25563 | -2/Research | Identified exit to Access 25577 | -2/Research | Spotted Striker 25577 | -2/Research | Spotted Striker 25690 | -2/Research | Discovered exit to Access (range 8) 25731 | -2/Research | Borebot progress halted 25827 | -2/Research | Spotted B-90 Cyclops 25865 | -2/Research | Destroyed B-90 Cyclops 25995 | -2/Research | Discovered exit to Access (range 5) 25996 | -2/Research | Spotted B-90 Cyclops 26067 | -2/Research | Entered Access 26067 | -1/Access | Evolved 2 slots: Utility x2 26381 | -1/Access | Spotted B-99 Colossus 26854 | -1/Access | System corruption reached 10% 27086 | -1/Access | Garrison activated, responded to threat 27258 | -1/Access | Destroyed 7 combat bots 27565 | -1/Access | Build established: Generator-Tank 27587 | -1/Access | Spotted B-99 Colossus 27862 | -1/Access | First assault squad dispatched 27916 | -1/Access | Crushed by falling debris 28142 | -1/Access | Identified Transdimensional Reconstructor 28142 | -1/Access | Warped through subspace 28307 | -1/Access | Found Prototype Ballistic Gun 28307 | -1/Access | Identified Multirail 28395 | -1/Access | Identified exit to Command 28450 | -1/Access | Destroyed 7 combat bots 28652 | -1/Access | Destroyed 7 combat bots 28826 | -1/Access | High security lockdown imminent 28905 | -1/Access | Spotted B-99 Colossus 28906 | -1/Access | High security lockdown engaged 28907 | -1/Access | Spotted B-99 Colossus 28921 | -1/Access | Entered Command 28944 | -1/Command | Lost 4 parts (1p2u1w) 29106 | -1/Command | Lost 4 parts (1n3u) 29200 | -1/Command | First assault squad dispatched 29358 | -1/Command | Lost 6 parts (2p1n2u1w) 29538 | -1/Command | Identified Vortex Chain Reactor 29566 | -1/Command | Spotted Striker 29573 | -1/Command | High security lockdown imminent 29573 | -1/Command | Destroyed Striker 29587 | -1/Command | Spotted Executioner 29587 | -1/Command | Spotted Executioner 29595 | -1/Command | Destroyed Executioner 29595 | -1/Command | Destroyed Executioner 29653 | -1/Command | High security lockdown engaged 29822 | -1/Command | Lost 5 parts (2u3w) 29826 | -1/Command | Destroyed 18 combat bots 29837 | -1/Command | Spotted Striker 29840 | -1/Command | Destroyed Striker 29862 | -1/Command | Spotted Investigator 29865 | -1/Command | Destroyed Investigator 29886 | -1/Command | Destroyed 14 combat bots 29934 | -1/Command | Spotted Alpha 7 29987 | -1/Command | Lost 8 parts (2n4u2w) 29990 | -1/Command | Spotted Executioner 29990 | -1/Command | Spotted Executioner 29990 | -1/Command | Spotted Striker 30012 | -1/Command | Core integrity fell below 50% 30016 | -1/Command | Destroyed Executioner 30018 | -1/Command | Destroyed Striker 30022 | -1/Command | Spotted Executioner 30030 | -1/Command | Core integrity fell below 20% 30039 | -1/Command | Destroyed by Alpha 7 with Multirail Last Messages --------------- 30034_ Penetrated by Slug. 30035_ Destroyed Sml. Battery. 30035_ Destroyed Imp. Antigrav System. 30036_ Extracted 35 energy. 30036_ The unstable cave ceiling collapses. 30036_ Penetrated by Slug. 30037_ The unstable cave ceiling collapses. 30037_ Slug penetrates Wall. 30037_ Destroyed Gamma Rifle. 30037_ Destroyed Imp. Antigrav System. 30038_ Extracted 35 energy. 30038_ The unstable cave ceiling collapses. 30038_ Penetrated by Slug. 30038_ P-80 Master resets Executioner, system corruption cleaned. 30039_ Wall collapses. 30039_ The unstable cave ceiling collapses. 30039_ P-80 Master destroyed. 30039_ B-74 Champion suffers critical hit (Destroy). 30039_ B-74 Champion destroyed. 30039_ Penetrated by Slug. Map ----- +----------------------------------------------------+ | ???? ??# # #?????????????????????????? | | ???? ??#######+####+## #?????????????????????????? | | ####/####### #? #?????????????????????????? | | "" #? #?????????????????????????? | | "T ## #?????????????????????????? | | #?????????????????????????? | | ####+####### #######?????????????????????????? | | #????## ##???????????????????????????????? | | ####??# #######??????????????????????????? | | ! # # # #??????????????????????????? | | ! # # # #??????????????????????????? | | # # # ###????????????????????????? | | # # # ????????????????????????? | | ###+##" ! # ##??????????????????????? | | #"# # ## ??????????????????????? | | # # # ?????#+###????????????? | | # # # # #### #????????????? | | # # # % #????????????? | | #% # # h #????????????? | | %[ + %%% #????????????? | | [ # # ;[% ##### #????????????? | | ##=%%# # # #####;; [ ###########????????????? | | ==%=/ % # #???????????????? | | != """ #???????????????? | | % """" #???????????????? | | ### ####### @ """" #???????????????? | | # #??## %[/ "T #???????????????? | | ###??# # % #???????????????? | | #? +! w ## ####???????????????? | | //######! #??????????????????? | | /=#??? #?????????????????? | | * #? ####?????????????? | | #? % #?????????????? | | ###########?? # #?????????????? | | ?????????????## % #?????????????? | | ??????????????# # E #?????????????? | | ??????????????# ?????????????? | | ???????????????? #?????????????? | | ?????????????????# #?????????????? | | ?????????????????# # 7 ####?????????????? | | ?????????????????#?## #????????????????? | | ??????????????????? ## " # +#########????????? | | ????????????????? # %%" ## #????????? | | ????????????????# ## %%% ##"######???? | | ????????????????# # " # ## #???? | | ????????????????# # # ## #???? | | ?????????????????# # "" =#" #???? | | ?????????????????# """" ## #?? # | | ???????????????????# """ ## /!= # | | ?????????????????? # " ## / =![# # # | +----------------------------------------------------+ Best States ------------- Heat Dissipation 122 Coolant Potential 120 Energy Generation 75 Energy Capacity 1305 Matter Stores 300 Matter Capacity 300 Sight Range 24 Robot Scan Range 16 Terrain Scan Range 20 Terrain Scan Density 210 Jamming Range 16 Corruption Block 19 Armor Coverage 1200 Resistance: KI 30 Resistance: TH 30 Propulsion Shielding 33 Utility Shielding 66 Phase Shifting 20 Evasion (%) 60 Targeting Accuracy 8 Target Analysis 12 Core Analysis 8 Armor Integrity Analysis 40 Recoil Reduction 6 Offensive Hacking 12 Authchip Count 1 Item Schematics ----------------- Lgt. Armor Plating | -9/Materials | Scanalyzed Imp. Heat Sink | -9/Materials | Scanalyzed Lgt. Treads | -9/Materials | Scanalyzed Hcp. Storage Unit | -9/Materials | Hacked Huge Storage Unit | -9/Materials | Hacked Seismic Detector | -9/Materials | Hacked Targeting Computer | -9/Materials | Scanalyzed Imp. Terrain Scanner | -8/Materials | Scanalyzed Med. Treads | -7/Factory | Hacked Imp. Heavy Armor Plating | -6/Factory | Scanalyzed Imp. System Restoration Module | -6/Factory | Scanalyzed Imp. Powered Armor | -6/Extension | Hacked Hvy. Treads | -5/Factory | Hacked Assault Drone Bay | -4/Zhirov | Free Exp. Heat Sink | -4/Zhirov | Free Exp. Optical Array | -4/Zhirov | Free Imp. Arc Thrower | -4/Zhirov | Free Robot Schematics ------------------ None Fabricated ------------ Quantum Rifle | x2 | -6/Factory | Preloaded Imp. Powered Armor | x1 | -5/Factory Hvy. Treads | x2 | -4/Factory | Authchip Adv. Heavy Siege Treads | x2 | -3/Testing | Preloaded Exp. Force Field | x1 | -2/Research | Preloaded Alien Tech Used ----------------- Integrated Dissipator Transdimensional Reconstructor Achievements -------------- None Challenges ------------ None Game ------ Seed ComponentFocalTerrabomb Manual? 0 Play Time 05:51:07 Cumulative 230.4 hours Start 2022.10.21 @ 21:01:02 End 2022.10.23 @ 17:59:24 Sessions 3 Manual Loads 0 Difficulty Rogue Special Mode None Game No. 91 Rogue 91 Adventurer 0 Explorer 0 Win Type - Total 8 Types 3/1/2/1/1/0/0/0/0 Lore% 82 Gallery% 77 Achievement% 66 Wizard Run 0 Options --------- ASCII 0 Keyboard 1 Movement Numpad Keybinds 0 Fullscreen 2 Font 18/X11 Map View 76x50 Tactical HUD 1 Map Filters NONE Filters NONE Steam 1 RUN: 121b773e-30da-4e48-923e-f51e833c3ea3